bitfinex-derivatives/quotes_BTCF0:USTF0_20250626
["timestamp","ask_amount","ask_price","bid_price","bid_amount"]
[1750901874641,0.2994681,107720.0,107710.0,0.58375999]
[1750901874846,0.2994681,107720.0,107710.0,0.63841048]
[1750901875045,0.2994681,107720.0,107710.0,0.58375999]
[1750901875446,0.6294681,107720.0,107710.0,0.58375999]
[1750901876055,0.3594681,107720.0,107710.0,0.58375999]
[1750901876556,0.5894681,107720.0,107710.0,0.5469419]
[1750901876757,0.5904681,107720.0,107710.0,0.5509419]
[1750901877453,0.5904681,107720.0,107710.0,0.5529419]
[1750901878156,0.021,107720.0,107710.0,0.87989546]
[1750901878354,0.021,107720.0,107710.0,0.94049546]
[1750901878556,0.021,107720.0,107710.0,0.6135419]
[1750901878745,0.021,107720.0,107710.0,0.94049546]
[1750901878948,0.021,107720.0,107710.0,0.6135419]
[1750901879144,0.021,107720.0,107710.0,0.94049546]
[1750901879652,0.021,107720.0,107710.0,1.69505546]
[1750901879857,0.4071804,107750.0,107710.0,1.85586216]
[1750901880162,0.5355247,107750.0,107740.0,0.5463331]
[1750901880356,0.59595292,107750.0,107740.0,0.5463331]
[1750901881247,0.59695292,107750.0,107740.0,0.5463331]
[1750901881449,0.59895292,107750.0,107740.0,0.5463331]
[1750901882249,0.1855331,107740.0,107730.0,0.5463399]
[1750901882450,0.1855504,107730.0,107720.0,1.44582609]
[1750901882652,0.2481504,107730.0,107720.0,1.44545431]
[1750901882960,0.2481504,107730.0,107720.0,1.3911756]
[1750901883362,0.0626,107730.0,107720.0,1.3911756]
[1750901883660,0.2481503,107730.0,107720.0,1.78492916]
[1750901883863,0.2481503,107730.0,107720.0,1.03288916]
[1750901884251,0.2481503,107730.0,107720.0,0.7059356]
[1750901884451,0.5981503,107730.0,107720.0,0.004]
[1750901884659,0.92510386,107730.0,107720.0,0.004]
[1750901884963,0.5981503,107730.0,107720.0,0.1895675]
[1750901886656,0.5981503,107730.0,107720.0,0.004]
[1750901886958,0.92510386,107730.0,107720.0,0.1895674]
[1750901887262,0.5981503,107730.0,107720.0,0.1895674]
[1750901889573,0.92510386,107730.0,107720.0,0.004]
[1750901890469,0.92510386,107730.0,107720.0,0.1895674]
[1750901890670,0.5981503,107730.0,107720.0,0.1895674]
[1750901893165,0.92510386,107730.0,107720.0,0.004]
[1750901893670,0.92510386,107730.0,107720.0,0.1895674]
[1750901893671,0.5981503,107730.0,107720.0,0.1895674]
[1750901894170,1.3429903,107730.0,107720.0,0.1895674]
[1750901894372,0.5981503,107730.0,107720.0,0.1895674]
[1750901895171,0.5981503,107730.0,107720.0,0.87732096]
[1750901895383,0.2126,107730.0,107720.0,0.87732096]
[1750901895569,0.3355501,107730.0,107720.0,0.97554736]
[1750901895868,0.15,107730.0,107720.0,0.97554736]
[1750901896263,0.3355501,107730.0,107720.0,0.97554736]
[1750901896463,0.15,107730.0,107720.0,0.97554736]
[1750901896763,0.3355501,107730.0,107720.0,0.97554736]
[1750901897572,0.3355501,107730.0,107720.0,0.93882096]
[1750901898472,0.3355501,107730.0,107720.0,0.6118674]
[1750901898673,0.5255501,107730.0,107720.0,0.6118674]
[1750901898974,0.5567501,107730.0,107720.0,0.5503674]
[1750901899177,0.5867501,107730.0,107720.0,0.5503674]
[1750901899672,0.3267501,107730.0,107720.0,0.3648]
[1750901899863,0.90370366,107730.0,107720.0,0.004]
[1750901900062,1.64134366,107730.0,107720.0,0.004]
[1750901901477,2.18779966,107730.0,107720.0,0.004]
[1750901901770,2.2088215,107730.0,107720.0,0.004]
[1750901902074,0.1855674,107720.0,107710.0,0.0005566]
[1750901902272,0.93138777,107720.0,107710.0,0.0005566]
[1750901902669,0.0463967,107710.0,107680.0,0.70106633]
[1750901902883,0.185619,107690.0,107680.0,0.70106633]
[1750901903376,0.247319,107690.0,107680.0,0.70106633]
[1750901903776,0.557319,107690.0,107680.0,0.70106633]
[1750901903974,0.557319,107690.0,107680.0,0.59375813]
[1750901904278,0.88427256,107690.0,107680.0,0.54735223]
[1750901904477,0.91242972,107690.0,107680.0,0.55335223]
[1750901904671,0.58547616,107690.0,107680.0,0.55335223]
[1750901905478,0.65859772,107690.0,107680.0,0.55335223]
[1750901905978,0.65759772,107690.0,107680.0,0.54735223]
[1750901906281,0.63144056,107690.0,107680.0,0.54935223]
[1750901907980,0.65854804,107690.0,107680.0,0.54935223]
[1750901908683,0.65854804,107690.0,107680.0,0.55135223]
[1750901909278,0.63144056,107690.0,107680.0,0.55135223]
[1750901909982,1.36260056,107690.0,107680.0,0.55135223]
[1750901911985,1.36260056,107690.0,107680.0,0.36572863]
[1750901912485,1.68955412,107690.0,107680.0,0.55136493]
[1750901912980,1.36260056,107690.0,107680.0,0.55136493]
[1750901914083,1.36260056,107690.0,107680.0,0.36572863]
[1750901914276,1.68955412,107690.0,107680.0,0.36572863]
[1750901914478,1.68955412,107690.0,107680.0,0.00492863]
[1750901914782,1.7110619,107690.0,107680.0,0.00492863]
[1750901915185,1.7103819,107690.0,107680.0,0.00492863]
[1750901915382,1.38342834,107690.0,107680.0,0.00492863]
[1750901915576,1.7103819,107690.0,107680.0,0.00492863]
[1750901916286,2.0711819,107690.0,107680.0,0.00492863]
[1750901916580,0.1856708,107660.0,107650.0,0.54741609]
[1750901916781,0.82287259,107660.0,107650.0,0.36148066]
[1750901917293,0.88447259,107660.0,107650.0,0.36148066]
[1750901917486,1.24527259,107660.0,107650.0,0.00068066]
[1750901917787,1.27226607,107660.0,107650.0,0.00068066]
[1750901918984,1.27226607,107660.0,107650.0,0.00268066]
[1750901919386,1.27326607,107660.0,107650.0,0.00968066]
[1750901919890,1.27226607,107660.0,107650.0,0.00168066]
[1750901920082,1.27326607,107660.0,107650.0,0.00268066]
[1750901922092,0.58551251,107660.0,107650.0,0.18836866]
[1750901922289,1.30611251,107660.0,107650.0,0.54916866]
[1750901922487,0.36956237,107660.0,107650.0,0.87612222]
[1750901922795,0.01124823,107660.0,107650.0,0.95433805]
[1750901923293,0.01124823,107660.0,107650.0,0.62738449]
[1750901923483,0.00124823,107660.0,107650.0,0.95433805]
[1750901923893,0.51691893,107660.0,107650.0,0.62738449]
[1750901924191,0.51691893,107660.0,107650.0,0.20358449]
[1750901924392,0.57991893,107660.0,107650.0,0.20358449]
[1750901924587,0.57991893,107660.0,107650.0,0.56438449]
[1750901925397,0.57991893,107660.0,107650.0,0.62548449]
[1750901925894,0.57991893,107660.0,107650.0,0.40899649]
[1750901926096,0.57991893,107660.0,107650.0,0.37869649]
[1750901926600,0.57991893,107660.0,107650.0,0.56438449]
[1750901926789,0.51691893,107660.0,107650.0,0.62548449]
[1750901928698,0.51691893,107660.0,107650.0,0.95243805]
[1750901929594,0.51691893,107660.0,107650.0,0.62548449]
[1750901930698,0.51691893,107660.0,107650.0,0.40899649]
[1750901930881,0.58001893,107660.0,107650.0,0.40899649]
[1750901931086,0.58001893,107660.0,107650.0,0.37869649]
[1750901931294,0.63947739,107660.0,107650.0,0.00268066]
[1750901931491,0.96643095,107660.0,107650.0,0.00268066]
[1750901931885,0.63947739,107660.0,107650.0,0.00268066]
[1750901932292,0.61251893,107660.0,107650.0,0.00268066]
[1750901932696,0.93947249,107660.0,107650.0,0.00268066]
[1750901932890,0.63790542,107660.0,107650.0,0.00268066]
[1750901933397,1.36066542,107660.0,107650.0,0.00268066]
[1750901933888,2.04841898,107660.0,107650.0,0.00268066]
[1750901934896,1.68761898,107660.0,107650.0,0.00268066]
[1750901935197,1.36066542,107660.0,107650.0,0.00268066]
[1750901935398,1.68761898,107660.0,107650.0,0.00268066]
[1750901935596,2.04841898,107660.0,107650.0,0.00268066]
[1750901937895,0.96485898,107660.0,107650.0,0.00268066]
[1750901938096,1.35562542,107660.0,107650.0,0.36348066]
[1750901938303,1.35562542,107660.0,107650.0,0.00268066]
[1750901938494,1.35562542,107660.0,107650.0,0.36348066]
[1750901938695,1.35562542,107660.0,107650.0,0.54916856]
[1750901939002,1.35534542,107660.0,107650.0,0.54916856]
[1750901939600,1.35534542,107660.0,107650.0,0.36348066]
[1750901939802,0.63790542,107660.0,107650.0,0.54916856]
[1750901940099,1.35382542,107660.0,107650.0,0.54916856]
[1750901941395,1.35382542,107660.0,107650.0,0.18836856]
[1750901941903,1.35382542,107660.0,107650.0,0.54916856]
[1750901942201,2.04157898,107660.0,107650.0,0.00268066]
[1750901944007,1.71462542,107660.0,107650.0,0.00268066]
[1750901944302,2.04157898,107660.0,107650.0,0.00268066]
[1750901944502,0.1857052,107640.0,107630.0,0.3608]
[1750901944691,0.1857225,107630.0,107620.0,0.01595077]
[1750901944895,1.30365638,107630.0,107620.0,0.00092915]
[1750901945096,0.61615105,107630.0,107620.0,0.00092915]
[1750901945300,1.30415284,107630.0,107620.0,0.00092915]
[1750901946502,1.30415284,107630.0,107620.0,0.00192915]
[1750901947597,1.33525284,107630.0,107620.0,0.00192915]
[1750901947804,1.08092806,107630.0,107620.0,0.00192915]
[1750901948097,1.40788162,107630.0,107620.0,0.00192915]
[1750901948303,1.59371362,107630.0,107620.0,0.00192915]
[1750901948598,1.40788162,107630.0,107620.0,0.00192915]
[1750901948803,1.59371362,107630.0,107620.0,0.00192915]
[1750901949504,1.43608806,107630.0,107620.0,0.00192915]
[1750901949705,1.76304162,107630.0,107620.0,0.00192915]
[1750901949896,1.76304162,107630.0,107620.0,0.54846885]
[1750901950091,1.76304162,107630.0,107620.0,5e-08]
[1750901950304,1.40788162,107630.0,107620.0,5e-08]
[1750901950604,2.34052162,107630.0,107620.0,5e-08]
[1750901951102,2.01356806,107630.0,107620.0,5e-08]
[1750901951305,2.34052162,107630.0,107620.0,5e-08]
[1750901951495,0.185757,107610.0,107600.0,0.3608]
[1750901951692,1.25217346,107610.0,107600.0,0.3608]
[1750901951890,0.1857742,107600.0,107590.0,0.73440041]
[1750901952094,0.1857742,107600.0,107590.0,1.09520041]
[1750901952296,0.50627066,107600.0,107590.0,1.10431264]
[1750901952496,0.50651889,107600.0,107590.0,1.10431264]
[1750901952892,0.01074469,107600.0,107590.0,1.10431264]
[1750901953098,0.19651889,107600.0,107590.0,1.11431264]
[1750901953307,0.19751889,107600.0,107590.0,1.11731264]
[1750901954104,0.19751889,107600.0,107590.0,1.4442662]
[1750901954400,0.01174469,107600.0,107590.0,1.11731264]
[1750901954607,0.00174469,107600.0,107590.0,1.19331264]
[1750901954798,0.18751889,107600.0,107590.0,1.25921264]
[1750901955100,0.52751889,107600.0,107590.0,1.25921264]
[1750901955295,0.52751889,107600.0,107590.0,0.98632004]
[1750901955491,0.32111889,107600.0,107590.0,0.95442004]
[1750901955692,0.62111889,107600.0,107590.0,0.73664164]
[1750901956607,0.33111889,107600.0,107590.0,0.73664164]
[1750901956903,0.56111889,107600.0,107590.0,0.73664164]
[1750901957204,0.56111889,107600.0,107590.0,0.92243324]
[1750901957703,0.33111889,107600.0,107590.0,0.92243324]
[1750901957901,0.88807245,107600.0,107590.0,0.00592941]
[1750901958099,2.93475245,107600.0,107590.0,0.00592941]
[1750901958295,1.24887245,107600.0,107590.0,0.00592941]
[1750901958499,1.27412708,107600.0,107590.0,0.00592941]
[1750901958806,2.77412708,107600.0,107590.0,0.00592941]
[1750901959302,0.56011889,107600.0,107590.0,0.54952101]
[1750901959510,0.49951889,107600.0,107590.0,0.54852101]
[1750901959700,0.50051889,107600.0,107590.0,0.62022101]
[1750901960500,0.50051889,107600.0,107590.0,0.65182101]
[1750901960702,0.19051889,107600.0,107590.0,0.65182101]
[1750901960900,0.55051889,107600.0,107590.0,0.65182101]
[1750901961700,0.55051889,107600.0,107590.0,0.64182101]
[1750901962295,0.57051889,107600.0,107590.0,0.64182101]
[1750901962500,0.13474469,107600.0,107590.0,0.64182101]
[1750901962701,0.32051879,107600.0,107590.0,0.96877457]
[1750901962911,0.19051879,107600.0,107590.0,0.96877457]
[1750901963109,0.57051879,107600.0,107590.0,0.64182101]
[1750901964901,0.34051879,107600.0,107590.0,0.96877457]
[1750901965101,0.34051879,107600.0,107590.0,0.64182101]
[1750901965303,0.30051879,107600.0,107590.0,0.64182101]
[1750901965505,0.19051879,107600.0,107590.0,0.64182101]
[1750901965805,0.56051879,107600.0,107590.0,0.64182101]
[1750901966500,0.56051879,107600.0,107590.0,0.00192941]
[1750901966501,0.68937235,107600.0,107590.0,0.00192941]
[1750901966810,1.65529235,107600.0,107590.0,0.00192941]
[1750901969304,1.32833879,107600.0,107590.0,0.00192941]
[1750901972504,1.35358739,107600.0,107590.0,0.00192941]
[1750901976711,0.63766739,107600.0,107590.0,0.18772071]
[1750901976914,0.57576739,107600.0,107590.0,0.87547427]
[1750901977113,0.57576739,107600.0,107590.0,0.93797427]
[1750901977703,0.55101525,107600.0,107590.0,0.93797427]
[1750901977911,0.19101525,107600.0,107590.0,0.93797427]
[1750901981814,0.53101525,107600.0,107590.0,0.36272941]
[1750901982010,0.61196881,107600.0,107590.0,0.00192941]
[1750901982209,2.0335234,107600.0,107590.0,0.00192941]
[1750901982409,1.6727234,107600.0,107590.0,0.00192941]
[1750901983013,2.0335234,107600.0,107590.0,0.00192941]
[1750901985219,1.70656984,107600.0,107590.0,0.00192941]
[1750901985710,0.63028984,107600.0,107590.0,0.54852061]
[1750901985913,1.34552984,107600.0,107590.0,0.54852061]
[1750901986510,0.63028984,107600.0,107590.0,0.54852061]
[1750901986711,1.34548984,107600.0,107590.0,0.54852061]
[1750901987814,1.34540984,107600.0,107590.0,0.54852061]
[1750901992115,1.34540984,107600.0,107590.0,0.61132061]
[1750901992510,0.63028984,107600.0,107590.0,0.61132061]
[1750901993212,0.60501525,107600.0,107590.0,0.61132061]
[1750901994117,0.54201525,107600.0,107590.0,0.61132061]
[1750901994415,0.23201525,107600.0,107590.0,0.93827417]
[1750901995119,0.04624115,107600.0,107590.0,0.93827417]
[1750901995417,0.01524115,107600.0,107590.0,0.93827417]
[1750901995813,0.01524115,107600.0,107590.0,0.97827417]
[1750901996015,0.00524115,107600.0,107590.0,0.97827417]
[1750901996218,0.00524115,107600.0,107590.0,0.93115141]
[1750901997017,0.19101515,107600.0,107590.0,0.93115141]
[1750901998218,0.19101515,107600.0,107590.0,1.26276061]
[1750901998412,0.25571515,107600.0,107590.0,1.26276061]
[1750901998613,0.28711515,107600.0,107590.0,1.26276061]
[1750901999014,0.28711515,107600.0,107590.0,0.54852061]
[1750901999410,0.28711515,107600.0,107590.0,1.26264061]
[1750902000516,0.28711515,107600.0,107590.0,0.36272941]
[1750902000722,0.61511054,107600.0,107590.0,0.36272941]
[1750902000917,0.95511054,107600.0,107590.0,0.54852061]
[1750902001112,0.62711515,107600.0,107590.0,0.54852061]
[1750902001517,0.62711515,107600.0,107590.0,0.61302061]
[1750902002023,0.19101515,107600.0,107590.0,0.61302061]
[1750902002324,0.25531515,107600.0,107590.0,0.54852061]
[1750902002513,0.28711515,107600.0,107590.0,0.54852061]
[1750902004226,0.63711515,107600.0,107590.0,0.54852061]
[1750902004426,0.63711515,107600.0,107590.0,0.36272941]
[1750902004630,0.63711515,107600.0,107590.0,0.54852061]
[1750902005129,0.63711515,107600.0,107590.0,0.36272941]
[1750902005528,0.63711515,107600.0,107590.0,0.54852061]
[1750902006128,0.66213403,107600.0,107590.0,0.54852061]
[1750902007021,0.66213403,107600.0,107590.0,0.36272941]
[1750902007222,0.66213403,107600.0,107590.0,0.54852061]
[1750902007624,0.99012942,107600.0,107590.0,0.36272941]
[1750902007826,1.33092942,107600.0,107590.0,0.00192941]
[1750902011444,2.04404942,107600.0,107590.0,0.00192941]
[1750902015541,0.1858085,107580.0,107570.0,0.3608]
[1750902015740,1.22648389,107580.0,107570.0,0.3608]
[1750902015941,1.69398035,107580.0,107570.0,0.5466258]
[1750902016141,0.99623319,107580.0,107570.0,0.5466258]
[1750902016342,1.37623319,107580.0,107570.0,0.5466258]
[1750902016538,0.99623319,107580.0,107570.0,0.5466258]
[1750902016743,0.99623319,107580.0,107570.0,0.5486258]
[1750902017144,1.34623319,107580.0,107570.0,0.5486258]
[1750902017342,1.34623319,107580.0,107570.0,0.55816895]
[1750902018042,1.33623319,107580.0,107570.0,0.55816895]
[1750902018943,1.07623319,107580.0,107570.0,0.55816895]
[1750902019141,1.35723319,107580.0,107570.0,0.5506258]
[1750902019642,1.30683319,107580.0,107570.0,0.5506258]
[1750902020046,0.99683319,107580.0,107570.0,0.5506258]
[1750902020246,1.34683319,107580.0,107570.0,0.5506258]
[1750902020642,0.99683319,107580.0,107570.0,0.5506258]
[1750902021049,1.30683319,107580.0,107570.0,0.5506258]
[1750902021242,0.99683319,107580.0,107570.0,0.5506258]
[1750902021442,1.31683319,107580.0,107570.0,0.5506258]
[1750902021644,1.59685174,107580.0,107570.0,0.5506258]
[1750902022149,1.36685174,107580.0,107570.0,0.5506258]
[1750902022351,1.64685174,107580.0,107570.0,0.5506258]
[1750902022543,1.64685174,107580.0,107570.0,0.3648]
[1750902022739,1.64685174,107580.0,107570.0,0.5506258]
[1750902022942,1.64685174,107580.0,107570.0,0.3648]
[1750902023446,1.09683319,107580.0,107570.0,0.5506258]
[1750902023646,1.61685174,107580.0,107570.0,0.5506258]
[1750902024245,1.61685174,107580.0,107570.0,0.5506259]
[1750902024451,1.33683319,107580.0,107570.0,0.5506259]
[1750902024652,1.61685174,107580.0,107570.0,0.5506259]
[1750902025154,1.33683319,107580.0,107570.0,0.5506259]
[1750902025347,1.33619319,107580.0,107570.0,0.5506259]
[1750902027752,1.61621174,107580.0,107570.0,0.3648]
[1750902028647,1.61621174,107580.0,107570.0,0.004]
[1750902028853,2.00146784,107580.0,107570.0,0.004]
[1750902029352,1.97701174,107580.0,107570.0,0.004]
[1750902030244,0.185826,107570.0,107560.0,0.00092967]
[1750902030451,0.90889278,107570.0,107560.0,0.00092967]
[1750902030646,0.90914101,107570.0,107560.0,0.00092967]
[1750902032761,0.91538924,107570.0,107560.0,0.00192967]
[1750902033142,1.27618924,107570.0,107560.0,0.00192967]
[1750902033450,1.30064585,107570.0,107560.0,0.00192967]
[1750902033948,1.51380585,107570.0,107560.0,0.00192967]
[1750902034157,0.1858605,107550.0,107540.0,0.3608]
[1750902034454,0.89674873,107550.0,107540.0,0.5466778]
[1750902034647,0.96044519,107550.0,107540.0,0.5466778]
[1750902034849,0.96036519,107550.0,107540.0,0.5466778]
[1750902035056,1.30036519,107550.0,107540.0,0.6098778]
[1750902035554,0.96136519,107550.0,107540.0,0.6138778]
[1750902035747,1.33136519,107550.0,107540.0,0.6138778]
[1750902036149,0.96136519,107550.0,107540.0,0.6138778]
[1750902036349,1.33136519,107550.0,107540.0,0.6138778]
[1750902036850,1.61138374,107550.0,107540.0,0.6138778]
[1750902037252,1.24138374,107550.0,107540.0,0.6138778]
[1750902037454,1.34136519,107550.0,107540.0,0.6138778]
[1750902037754,1.30946519,107550.0,107540.0,0.6138778]
[1750902038058,1.30946519,107550.0,107540.0,0.6459778]
[1750902038254,0.92946519,107550.0,107540.0,0.6459778]
[1750902038648,1.24046519,107550.0,107540.0,0.6429778]
[1750902038848,0.93046519,107550.0,107540.0,0.6429778]
[1750902039155,1.28046519,107550.0,107540.0,0.6429778]
[1750902039348,1.31186519,107550.0,107540.0,0.6429778]
[1750902039543,1.38806802,107550.0,107540.0,0.6429778]
[1750902040254,1.03806802,107550.0,107540.0,0.6429778]
[1750902040447,1.40806802,107550.0,107540.0,0.6429778]
[1750902040848,1.03806802,107550.0,107540.0,0.6429778]
[1750902041049,1.35806802,107550.0,107540.0,0.6429778]
[1750902042049,1.63808657,107550.0,107540.0,0.5476778]
[1750902042652,1.63808657,107550.0,107540.0,0.3618]
[1750902043755,1.63858303,107550.0,107540.0,0.3618]
[1750902043954,1.99938303,107550.0,107540.0,0.001]
[1750902045449,1.74384432,107550.0,107530.0,0.00092993]
[1750902045756,0.85542603,107540.0,107530.0,0.00092993]
[1750902045949,1.50981692,107540.0,107530.0,0.00092993]
[1750902046151,3.01031338,107540.0,107530.0,0.00092993]
[1750902046852,2.73029483,107540.0,107530.0,0.00192993]
[1750902047160,3.01031338,107540.0,107530.0,0.00192993]
[1750902048158,0.1859123,107520.0,107510.0,0.3608]
[1750902048358,1.54509085,107520.0,107510.0,0.3608]
[1750902048558,1.60978731,107520.0,107510.0,0.3608]
[1750902048748,1.61003554,107520.0,107510.0,0.3608]
[1750902049352,1.61003554,107520.0,107510.0,0.3618]
[1750902049850,1.89105409,107520.0,107510.0,0.3648]
[1750902050459,1.61103554,107520.0,107510.0,0.3648]
[1750902051047,1.33101699,107520.0,107510.0,0.3648]
[1750902051249,0.62185699,107520.0,107510.0,0.5507295]
[1750902051454,0.89661699,107520.0,107510.0,0.83074805]
[1750902051655,1.23661699,107520.0,107510.0,0.6457295]
[1750902051848,1.51663554,107520.0,107510.0,0.4598]
[1750902052049,1.57763554,107520.0,107510.0,0.3648]
[1750902054063,1.57963554,107520.0,107510.0,0.3638]
[1750902055358,1.58263554,107520.0,107510.0,0.3618]
[1750902055859,1.30261699,107520.0,107510.0,0.3618]
[1750902056163,1.58263554,107520.0,107510.0,0.3618]
[1750902056456,1.30261699,107520.0,107510.0,0.3618]
[1750902056649,1.58263554,107520.0,107510.0,0.3618]
[1750902057054,0.1859641,107490.0,107480.0,0.3608]
[1750902057261,0.1859641,107490.0,107480.0,0.4608]
[1750902057262,1.56827305,107490.0,107480.0,0.4608]
[1750902057466,0.1859814,107480.0,107470.0,0.36173045]
[1750902057663,0.84129641,107480.0,107470.0,0.66173045]
[1750902057867,0.84154464,107480.0,107470.0,0.37173045]
[1750902058056,0.56152609,107480.0,107470.0,0.36173045]
[1750902058258,0.86546714,107480.0,107470.0,0.36173045]
[1750902058456,0.53064859,107480.0,107470.0,0.62772905]
[1750902058659,0.18672599,107480.0,107470.0,1.0062476]
[1750902058859,0.18672599,107480.0,107470.0,0.72622905]
[1750902059060,0.18672599,107480.0,107470.0,1.0062476]
[1750902059259,0.18772529,107480.0,107470.0,0.9282476]
[1750902059455,0.53772529,107480.0,107470.0,0.90822905]
[1750902059657,0.81774384,107480.0,107470.0,0.44643045]
[1750902059966,0.88074384,107480.0,107470.0,0.36373045]
[1750902060161,0.91124384,107480.0,107470.0,0.36473045]
[1750902060558,0.89124384,107480.0,107470.0,0.36473045]
[1750902061360,0.91512236,107480.0,107470.0,0.36473045]
[1750902061965,0.89124384,107480.0,107470.0,0.36473045]
[1750902063068,0.61122529,107480.0,107470.0,0.36473045]
[1750902063277,0.18772529,107480.0,107470.0,0.55072755]
[1750902063569,0.18772529,107480.0,107470.0,0.8632461]
[1750902063758,0.18772529,107480.0,107470.0,0.9137461]
[1750902064070,0.00174469,107480.0,107470.0,0.9137461]
[1750902065167,0.00174469,107480.0,107470.0,1.1437461]
[1750902065370,0.18772589,107480.0,107470.0,1.1437461]
[1750902066272,0.18772589,107480.0,107470.0,1.19238914]
[1750902066860,0.00174469,107480.0,107470.0,1.19238914]
[1750902067369,0.18772599,107480.0,107470.0,1.19238914]
[1750902067672,0.18772599,107480.0,107470.0,1.62847714]
[1750902067871,0.00174469,107480.0,107470.0,2.33623714]
[1750902068067,0.18772599,107480.0,107470.0,2.33623714]
[1750902068676,0.18772599,107480.0,107470.0,1.57148755]
[1750902068973,0.18772599,107480.0,107470.0,0.86372755]
[1750902074368,0.18772599,107480.0,107470.0,1.22452755]
[1750902075974,0.18772599,107480.0,107470.0,1.55318914]
[1750902076872,0.18822245,107480.0,107470.0,1.55318914]
[1750902079171,0.00224115,107480.0,107470.0,1.55318914]
[1750902079379,0.18822235,107480.0,107470.0,1.22452755]
[1750902079974,0.18822235,107480.0,107470.0,0.00393045]
[1750902079975,1.57738974,107480.0,107470.0,0.00393045]
[1750902080175,1.88258974,107480.0,107470.0,0.00393045]
[1750902080372,1.63258974,107480.0,107470.0,0.00393045]
[1750902080571,1.87258974,107480.0,107470.0,0.00393045]
[1750902081271,1.91258974,107480.0,107470.0,0.00393045]
[1750902081872,0.66616815,107480.0,107470.0,0.18992895]
[1750902082075,0.60256815,107480.0,107470.0,0.87939054]
[1750902082376,0.60256815,107480.0,107470.0,0.64572895]
[1750902082579,0.21862235,107480.0,107470.0,0.64572895]
[1750902082879,0.56862235,107480.0,107470.0,0.64572895]
[1750902083177,0.18822235,107480.0,107470.0,0.64572895]
[1750902083877,0.00224115,107480.0,107470.0,1.01439054]
[1750902084371,0.00524115,107480.0,107470.0,1.01139054]
[1750902084572,0.00524115,107480.0,107470.0,1.71747054]
[1750902085481,0.00524115,107480.0,107470.0,2.15355854]
[1750902085686,0.00524115,107480.0,107470.0,2.34355854]
[1750902087280,0.00524115,107480.0,107470.0,2.16737034]
[1750902088086,0.00524115,107480.0,107470.0,1.98128234]
[1750902088373,0.00524115,107480.0,107470.0,1.93305802]
[1750902089877,0.00524115,107480.0,107470.0,2.11914602]
[1750902090670,0.00524115,107480.0,107470.0,2.36914602]
[1750902090875,0.3254005,107510.0,107500.0,0.1859466]
[1750902091075,0.3254005,107510.0,107500.0,0.82718387]
[1750902091076,0.36685308,107510.0,107500.0,0.82718387]
[1750902091375,0.2501446,107510.0,107500.0,0.82718387]
[1750902091573,0.2501446,107510.0,107500.0,0.85998387]
[1750902091875,0.2581446,107510.0,107500.0,0.93398907]
[1750902092077,0.2631446,107510.0,107500.0,0.97521482]
[1750902092283,0.2631446,107510.0,107500.0,0.90120962]
[1750902093280,0.86358187,107510.0,107500.0,0.5467466]
[1750902093783,0.85958187,107510.0,107500.0,0.5477466]
[1750902093982,0.91958187,107510.0,107500.0,0.5477466]
[1750902094374,0.91758187,107510.0,107500.0,0.5477466]
[1750902094576,0.91758187,107510.0,107500.0,0.3618]
[1750902095081,0.94132413,107510.0,107500.0,0.3618]
[1750902095281,0.94132413,107510.0,107500.0,0.001]
[1750902096279,0.9895067,107510.0,107500.0,0.001]
[1750902097082,0.66088686,107510.0,107500.0,0.1869466]
[1750902097382,0.28087156,107510.0,107500.0,0.92636644]
[1750902097786,0.28087156,107510.0,107500.0,0.5977466]
[1750902104177,0.09494226,107510.0,107500.0,0.5977466]
[1750902104380,0.28087206,107510.0,107500.0,0.5977466]
[1750902105185,0.09494226,107510.0,107500.0,0.5977466]
[1750902105388,0.28087206,107510.0,107500.0,0.5977466]
[1750902105979,0.28087206,107510.0,107500.0,0.6617466]
[1750902106179,0.09494226,107510.0,107500.0,0.6617466]
[1750902106590,0.007,107510.0,107500.0,0.99036644]
[1750902107184,0.007,107510.0,107500.0,1.89576644]
[1750902107389,1.0760151,107540.0,107530.0,0.1858952]
[1750902107684,0.5990919,107540.0,107530.0,0.5466952]
[1750902107884,0.5990919,107540.0,107530.0,0.55622114]
[1750902108282,0.151,107540.0,107530.0,1.58760098]
[1750902108594,0.151,107540.0,107530.0,1.64930098]
[1750902108794,0.151,107540.0,107530.0,1.68120098]
[1750902109093,0.3448779,107540.0,107530.0,0.55722114]
[1750902109396,0.3760779,107540.0,107530.0,0.5476952]
[1750902109693,0.2260779,107540.0,107530.0,0.5476952]
[1750902109993,0.2300779,107540.0,107530.0,0.5476952]
[1750902110795,0.2240779,107540.0,107530.0,0.5476952]
[1750902112799,0.56786447,107540.0,107530.0,0.3618]
[1750902112993,0.24786447,107540.0,107530.0,0.5476952]
[1750902113298,0.57786447,107540.0,107530.0,0.5476952]
[1750902113894,0.57786447,107540.0,107530.0,0.3618]
[1750902114795,0.57786447,107540.0,107530.0,0.5476952]
[1750902115095,0.57786447,107540.0,107530.0,0.3618]
[1750902115294,0.57786447,107540.0,107530.0,0.5476952]
[1750902115499,0.57786447,107540.0,107530.0,0.3618]
[1750902117092,0.90648431,107540.0,107530.0,0.3618]
[1750902117292,0.90648431,107540.0,107530.0,0.001]
[1750902117898,0.93648431,107540.0,107530.0,0.001]
[1750902118299,0.88816614,107540.0,107530.0,0.001]
[1750902120491,1.09488614,107540.0,107530.0,0.001]
[1750902122997,2.59488614,107540.0,107530.0,0.001]
[1750902123198,2.31458447,107540.0,107530.0,0.001]
[1750902123505,2.59488614,107540.0,107530.0,0.001]
[1750902123900,2.76980824,107540.0,107510.0,0.3608]
[1750902124103,0.1859298,107510.0,107500.0,0.3608]
[1750902124308,0.77623147,107510.0,107500.0,0.3608]
[1750902124606,0.89404372,107510.0,107500.0,0.3608]
[1750902124997,1.26055147,107510.0,107500.0,0.5467471]
[1750902125305,0.1859644,107490.0,107480.0,0.5467743]
[1750902125606,0.20967819,107490.0,107480.0,0.5932693]
[1750902125802,0.58447986,107490.0,107480.0,0.3608]
[1750902126003,1.65439986,107490.0,107480.0,0.3608]
[1750902126603,0.1859817,107480.0,107470.0,0.00093045]
[1750902126799,0.83888337,107480.0,107470.0,0.36173045]
[1750902127003,0.5822946,107480.0,107470.0,0.36173045]
[1750902127309,0.83888337,107480.0,107470.0,0.36173045]
[1750902127607,0.8625794,107480.0,107470.0,0.36173045]
[1750902128000,0.8625794,107480.0,107470.0,0.36373045]
[1750902128001,0.8635794,107480.0,107470.0,0.36373045]
[1750902128200,0.88846386,107480.0,107470.0,0.36373045]
[1750902128602,1.2729458,107480.0,107470.0,0.00293045]
[1750902129201,1.24926386,107480.0,107470.0,0.00293045]
[1750902129400,0.9203817,107480.0,107470.0,0.00293045]
[1750902130707,1.24926386,107480.0,107470.0,0.00293045]
[1750902131503,0.9203817,107480.0,107470.0,0.00293045]
[1750902131809,0.88846386,107480.0,107470.0,0.00293045]
[1750902132408,0.88846386,107480.0,107470.0,0.36373045]
[1750902132609,0.88846386,107480.0,107470.0,0.00293045]
[1750902135110,0.5595817,107480.0,107470.0,0.00293045]
[1750902135301,0.88846386,107480.0,107470.0,0.36373045]